{"text_format":"1","workbook":"xlsx","n_sheets":7,"sheets":["Summary","Base","Subs","Sub1","Sub2","Sub3","Sub4"],"not_rendered":{"charts":0,"images":0,"macros":1,"external_links":0,"defined_names":3,"comments":2,"pivot_tables":1},"unopened":[],"bounds":{"document_bytes":16777216,"sheet_cells":100000,"rows_first":2000,"rows_last":500,"rows_between":2000,"halvings":0,"cell_chars":16384,"cell_head_chars":4096},"cells_cut":0,"cells_raw":0,"read":"whole","date_system":"1900"}

{"sheet":"Summary","index":0,"n_rows":59,"n_cols":17,"rows_kept":59,"cut":false,"hidden":false,"merged":[]}
[]
["Step4 of 4"]
[null,null,"Table9",null,null,null,null,null,null,null,null,null,"PivotTable1"]
[null,null,"CustNumb","CustName","Address","City","State","Zip","2006","2007","2008",null,null,null,"Values"]
[null,null,"B4233","Carl Thompson","886 Modag St","Phoenix","NM",941153217,39.28,49.82,null,null,"CustNumb","CustName","_2006","_2007","_2008"]
[null,null,"B4233","Carl Thompson","886 Modag St","Phoenix","NM",941153217,null,null,78.94,null,"B4233","Carl Thompson",39.28,49.82,78.94]
[null,null,"B5804","Donald Stevens","693 Gafib St","Madison","UT",317345714,44.87,70.37,null,null,"B5804","Donald Stevens",44.87,70.37,0]
[null,null,"D3156","Randy Reynolds","688 Tugic St","Minneapolis","WI",250219347,37.090000000000003,38.799999999999997,null,null,"D3156","Randy Reynolds",37.090000000000003,38.799999999999997,57.51]
[null,null,"D3156","Randy Reynolds","688 Tugic St","Minneapolis","WI",250219347,null,null,57.51,null,"D9871","Jonathan Young",25.47,45.33,11.71]
[null,null,"D9871","Jonathan Young","771 Korod St","Santa Ana","PA",887882610,25.47,45.33,null,null,"F4740","Shawn Ford",25.68,34.28,54.84]
[null,null,"D9871","Jonathan Young","771 Korod St","Santa Ana","PA",887882610,null,null,11.71,null,"F5319","Jimmy Turner",23.7,13.45,98.95]
[null,null,"F4740","Shawn Ford","613 Dumek St","Seattle","IA",413663177,25.68,34.28,null,null,"F8747","Randy Williams",17.71,20.55,74.22]
[null,null,"F4740","Shawn Ford","613 Dumek St","Seattle","IA",413663177,null,null,54.84,null,"G6719","Gregory Nelson",21.67,57.87,33.53]
[null,null,"F5319","Jimmy Turner","555 Mufic St","Tulsa","KS",365734806,23.7,13.45,null,null,"H3155","Vincent Jordan",76.88,92.11,0]
[null,null,"F5319","Jimmy Turner","555 Mufic St","Tulsa","KS",365734806,null,null,98.95,null,"H9477","Patrick Parker",89.97,68.650000000000006,0]
[null,null,"F8747","Randy Williams","927 Pesob St","Fresno","NY",372996623,17.71,20.55,null,null,"H9616","Gary Long",65.489999999999995,11.07,27.39]
[null,null,"F8747","Randy Williams","927 Pesob St","Fresno","NY",372996623,null,null,74.22,null,"J1367","Bryan Hamilton",0,0,43.44]
[null,null,"G6719","Gregory Nelson","234 Femuc St","Sacramento","KS",602536675,21.67,57.87,null,null,"J2236","Steven Hill",25.37,84.87,39.200000000000003]
[null,null,"G6719","Gregory Nelson","234 Femuc St","Sacramento","KS",602536675,null,null,33.53,null,"J4172","Jeremy Cox",73,95.61,80.88]
[null,null,"H3155","Vincent Jordan","876 Lasid St","Jackson","NY",303567006,76.88,92.11,null,null,"J6279","Victor Green",0,0,68.64]
[null,null,"H9477","Patrick Parker","969 Tohip St","Santa Clarita","TX",551929212,89.97,68.650000000000006,null,null,"J9069","Luis Henderson",64.12,10.3,12.75]
[null,null,"H9616","Gary Long","254 Nupar St","Shreveport","NE",952504776,65.489999999999995,11.07,null,null,"J9265","Joseph Hamilton",50.92,85.78,43.07]
[null,null,"H9616","Gary Long","254 Nupar St","Shreveport","NE",952504776,null,null,27.39,null,"K7724","Richard Evans",0,0,33.74]
[null,null,"J1367","Bryan Hamilton","769 Vutod St","Fort","IN",342434903,null,null,43.44,null,"K8839","Roy Reynolds",81.239999999999995,82.16,94.95]
[null,null,"J2236","Steven Hill","862 Lobab St","Tempe","NY",148366122,25.37,84.87,null,null,"L6069","Harry Woods",42.52,15.04,23.48]
[null,null,"J2236","Steven Hill","862 Lobab St","Tempe","NY",148366122,null,null,39.200000000000003,null,"M5734","Philip Alexander",0,0,28.49]
[null,null,"J4172","Jeremy Cox","187 Vihap St","Wichita","VT",806555938,73,95.61,null,null,"N1566","Dale Fisher",85.81,96.08,21.3]
[null,null,"J4172","Jeremy Cox","187 Vihap St","Wichita","VT",806555938,null,null,80.88,null,"P1220","Allen Kennedy",65.599999999999994,80.77,0]
[null,null,"J6279","Victor Green","495 Wifop St","Lexington","GA",587077152,null,null,68.64,null,"R1078","George Walker",0,0,62.1]
[null,null,"J9069","Luis Henderson","668 Vamot St","Anaheim","NV",114735401,64.12,10.3,null,null,"R2752","Earl Hall",62.38,19.32,18.329999999999998]
[null,null,"J9069","Luis Henderson","668 Vamot St","Anaheim","NV",114735401,null,null,12.75,null,"T2255","Christopher Crawford",61.1,72.42,28.6]
[null,null,"J9265","Joseph Hamilton","801 Janip St","Chesapeake","CA",537158892,50.92,85.78,null,null,"T2707","Danny Morris",0,0,32.28]
[null,null,"J9265","Joseph Hamilton","801 Janip St","Chesapeake","CA",537158892,null,null,43.07,null,"T5548","Terry Coleman",84.9,70.52,10.97]
[null,null,"K7724","Richard Evans","193 Tugis St","Augusta","WY",467141500,null,null,33.74,null,"T8549","Roy Reed",54.2,10.3,29.02]
[null,null,"K8839","Roy Reynolds","853 Garic St","Tallahassee","ME",185217078,81.239999999999995,82.16,null,null,"T9303","Patrick Collins",63.14,33.17,44.87]
[null,null,"K8839","Roy Reynolds","853 Garic St","Tallahassee","ME",185217078,null,null,94.95,null,"V1177","Roy Bryant",0,0,47.58]
[null,null,"L6069","Harry Woods","521 Noman St","Salt Lake","IN",209881604,42.52,15.04,null,null,"V6088","Albert Simpson",28.27,51,0]
[null,null,"L6069","Harry Woods","521 Noman St","Salt Lake","IN",209881604,null,null,23.48,null,"V9237","Walter Bell",64.36,80.91,18.350000000000001]
[null,null,"M5734","Philip Alexander","285 Lihar St","Colorado Springs","CT",446716820,null,null,28.49,null,"W7203","Willie Webb",0,0,81.63]
[null,null,"N1566","Dale Fisher","818 Sutac St","Stockton","NE",473410213,85.81,96.08,null,null,"Grand Total",null,1374.74,1390.5500000000002,1300.7599999999998]
[null,null,"N1566","Dale Fisher","818 Sutac St","Stockton","NE",473410213,null,null,21.3]
[null,null,"P1220","Allen Kennedy","138 Wekad St","Oxnard","MT",845984838,65.599999999999994,80.77]
[null,null,"R1078","George Walker","351 Sedot St","Knoxville","AL",998801755,null,null,62.1]
[null,null,"R2752","Earl Hall","221 Lakid St","Modesto","MD",636897071,62.38,19.32]
[null,null,"R2752","Earl Hall","221 Lakid St","Modesto","MD",636897071,null,null,18.329999999999998]
[null,null,"T2255","Christopher Crawford","247 Mocih St","Anaheim","HI",297425916,61.1,72.42]
[null,null,"T2255","Christopher Crawford","247 Mocih St","Anaheim","HI",297425916,null,null,28.6]
[null,null,"T2707","Danny Morris","201 Gunek St","Gilbert","TX",665891989,null,null,32.28]
[null,null,"T5548","Terry Coleman","239 Vunuk St","Augusta","AZ",187534889,84.9,70.52]
[null,null,"T5548","Terry Coleman","239 Vunuk St","Augusta","AZ",187534889,null,null,10.97]
[null,null,"T8549","Roy Reed","102 Tutit St","Anchorage","AZ",637529568,54.2,10.3]
[null,null,"T8549","Roy Reed","102 Tutit St","Anchorage","AZ",637529568,null,null,29.02]
[null,null,"T9303","Patrick Collins","968 Wimur St","Washington","NE",628309728,63.14,33.17]
[null,null,"T9303","Patrick Collins","968 Wimur St","Washington","NE",628309728,null,null,44.87]
[null,null,"V1177","Roy Bryant","682 Setag St","Ontario","VA",813609919,null,null,47.58]
[null,null,"V6088","Albert Simpson","264 Wunap St","Buffalo","UT",423017533,28.27,51]
[null,null,"V9237","Walter Bell","827 Fafad St","Tampa","HI",284035834,64.36,80.91]
[null,null,"V9237","Walter Bell","827 Fafad St","Tampa","HI",284035834,null,null,18.350000000000001]
[null,null,"W7203","Willie Webb","463 Fegis St","Glendale","DE",669235441,null,null,81.63]

{"sheet":"Base","index":1,"n_rows":238,"n_cols":14,"rows_kept":238,"cut":false,"hidden":false,"merged":[]}
[null,null,null,"val_08"]
[null,null,null,{"$f":"GETPIVOTDATA(\"_\"&Table7[Item],PT_1,\"CustNumb\",INDEX(Table7[Value],rown-8))","v":{"$error":"#VALUE!"}},null,null,"Table8"]
["Step3 of 4",null,"Table7"]
[null,null,"Item","Value",null,null,"CustNumb","CustName","Address","City","State","Zip","2006","2007"]
[null,null,"CustNumb","B4233",null,null,"B4233","Carl Thompson","886 Modag St","Phoenix","NM",941153217,39.28,49.82]
[null,null,"CustName","Carl Thompson",null,null,"J4172","Jeremy Cox","187 Vihap St","Wichita","VT",806555938,73,95.61]
[null,null,"Address","886 Modag St",null,null,"L6069","Harry Woods","521 Noman St","Salt Lake","IN",209881604,42.52,15.04]
[null,null,"City","Phoenix",null,null,"J9069","Luis Henderson","668 Vamot St","Anaheim","NV",114735401,64.12,10.3]
[null,null,"State","NM",null,null,"H9616","Gary Long","254 Nupar St","Shreveport","NE",952504776,65.489999999999995,11.07]
[null,null,"Zip",941153217,null,null,"J2236","Steven Hill","862 Lobab St","Tempe","NY",148366122,25.37,84.87]
[null,null,2006,39.28,null,null,"J9265","Joseph Hamilton","801 Janip St","Chesapeake","CA",537158892,50.92,85.78]
[null,null,2007,49.82,null,null,"V9237","Walter Bell","827 Fafad St","Tampa","HI",284035834,64.36,80.91]
[null,null,2008,{"$f":"GETPIVOTDATA(\"_\"&[Item],PT_1,\"CustNumb\",INDEX([Value],rown-8))","v":78.94},null,null,"T2255","Christopher Crawford","247 Mocih St","Anaheim","HI",297425916,61.1,72.42]
[null,null,"CustNumb","J4172",null,null,"F5319","Jimmy Turner","555 Mufic St","Tulsa","KS",365734806,23.7,13.45]
[null,null,"CustName","Jeremy Cox",null,null,"T9303","Patrick Collins","968 Wimur St","Washington","NE",628309728,63.14,33.17]
[null,null,"Address","187 Vihap St",null,null,"T8549","Roy Reed","102 Tutit St","Anchorage","AZ",637529568,54.2,10.3]
[null,null,"City","Wichita",null,null,"N1566","Dale Fisher","818 Sutac St","Stockton","NE",473410213,85.81,96.08]
[null,null,"State","VT",null,null,"F4740","Shawn Ford","613 Dumek St","Seattle","IA",413663177,25.68,34.28]
[null,null,"Zip",806555938,null,null,"F8747","Randy Williams","927 Pesob St","Fresno","NY",372996623,17.71,20.55]
[null,null,2006,73,null,null,"D3156","Randy Reynolds","688 Tugic St","Minneapolis","WI",250219347,37.090000000000003,38.799999999999997]
[null,null,2007,95.61,null,null,"G6719","Gregory Nelson","234 Femuc St","Sacramento","KS",602536675,21.67,57.87]
[null,null,2008,{"$f":"GETPIVOTDATA(\"_\"&[Item],PT_1,\"CustNumb\",INDEX([Value],rown-8))","v":80.88},null,null,"K8839","Roy Reynolds","853 Garic St","Tallahassee","ME",185217078,81.239999999999995,82.16]
[null,null,"CustNumb","L6069",null,null,"T5548","Terry Coleman","239 Vunuk St","Augusta","AZ",187534889,84.9,70.52]
[null,null,"CustName","Harry Woods",null,null,"R2752","Earl Hall","221 Lakid St","Modesto","MD",636897071,62.38,19.32]
[null,null,"Address","521 Noman St",null,null,"D9871","Jonathan Young","771 Korod St","Santa Ana","PA",887882610,25.47,45.33]
[null,null,"City","Salt Lake",null,null,"B5804","Donald Stevens","693 Gafib St","Madison","UT",317345714,44.87,70.37]
[null,null,"State","IN",null,null,"P1220","Allen Kennedy","138 Wekad St","Oxnard","MT",845984838,65.599999999999994,80.77]
[null,null,"Zip",209881604,null,null,"H9477","Patrick Parker","969 Tohip St","Santa Clarita","TX",551929212,89.97,68.650000000000006]
[null,null,2006,42.52,null,null,"H3155","Vincent Jordan","876 Lasid St","Jackson","NY",303567006,76.88,92.11]
[null,null,2007,15.04,null,null,"V6088","Albert Simpson","264 Wunap St","Buffalo","UT",423017533,28.27,51]
[null,null,2008,{"$f":"GETPIVOTDATA(\"_\"&[Item],PT_1,\"CustNumb\",INDEX([Value],rown-8))","v":23.48}]
[null,null,"CustNumb","J9069"]
[null,null,"CustName","Luis Henderson"]
[null,null,"Address","668 Vamot St"]
[null,null,"City","Anaheim"]
[null,null,"State","NV"]
[null,null,"Zip",114735401]
[null,null,2006,64.12]
[null,null,2007,10.3]
[null,null,2008,{"$f":"GETPIVOTDATA(\"_\"&[Item],PT_1,\"CustNumb\",INDEX([Value],rown-8))","v":12.75}]
[null,null,"CustNumb","H9616"]
[null,null,"CustName","Gary Long"]
[null,null,"Address","254 Nupar St"]
[null,null,"City","Shreveport"]
[null,null,"State","NE"]
[null,null,"Zip",952504776]
[null,null,2006,65.489999999999995]
[null,null,2007,11.07]
[null,null,2008,{"$f":"GETPIVOTDATA(\"_\"&[Item],PT_1,\"CustNumb\",INDEX([Value],rown-8))","v":27.39}]
[null,null,"CustNumb","J2236"]
[null,null,"CustName","Steven Hill"]
[null,null,"Address","862 Lobab St"]
[null,null,"City","Tempe"]
[null,null,"State","NY"]
[null,null,"Zip",148366122]
[null,null,2006,25.37]
[null,null,2007,84.87]
[null,null,2008,{"$f":"GETPIVOTDATA(\"_\"&[Item],PT_1,\"CustNumb\",INDEX([Value],rown-8))","v":39.200000000000003}]
[null,null,"CustNumb","J9265"]
[null,null,"CustName","Joseph Hamilton"]
[null,null,"Address","801 Janip St"]
[null,null,"City","Chesapeake"]
[null,null,"State","CA"]
[null,null,"Zip",537158892]
[null,null,2006,50.92]
[null,null,2007,85.78]
[null,null,2008,{"$f":"GETPIVOTDATA(\"_\"&[Item],PT_1,\"CustNumb\",INDEX([Value],rown-8))","v":43.07}]
[null,null,"CustNumb","V9237"]
[null,null,"CustName","Walter Bell"]
[null,null,"Address","827 Fafad St"]
[null,null,"City","Tampa"]
[null,null,"State","HI"]
[null,null,"Zip",284035834]
[null,null,2006,64.36]
[null,null,2007,80.91]
[null,null,2008,{"$f":"GETPIVOTDATA(\"_\"&[Item],PT_1,\"CustNumb\",INDEX([Value],rown-8))","v":18.350000000000001}]
[null,null,"CustNumb","T2255"]
[null,null,"CustName","Christopher Crawford"]
[null,null,"Address","247 Mocih St"]
[null,null,"City","Anaheim"]
[null,null,"State","HI"]
[null,null,"Zip",297425916]
[null,null,2006,61.1]
[null,null,2007,72.42]
[null,null,2008,{"$f":"GETPIVOTDATA(\"_\"&[Item],PT_1,\"CustNumb\",INDEX([Value],rown-8))","v":28.6}]
[null,null,"CustNumb","F5319"]
[null,null,"CustName","Jimmy Turner"]
[null,null,"Address","555 Mufic St"]
[null,null,"City","Tulsa"]
[null,null,"State","KS"]
[null,null,"Zip",365734806]
[null,null,2006,23.7]
[null,null,2007,13.45]
[null,null,2008,{"$f":"GETPIVOTDATA(\"_\"&[Item],PT_1,\"CustNumb\",INDEX([Value],rown-8))","v":98.95}]
[null,null,"CustNumb","T9303"]
[null,null,"CustName","Patrick Collins"]
[null,null,"Address","968 Wimur St"]
[null,null,"City","Washington"]
[null,null,"State","NE"]
[null,null,"Zip",628309728]
[null,null,2006,63.14]
[null,null,2007,33.17]
[null,null,2008,{"$f":"GETPIVOTDATA(\"_\"&[Item],PT_1,\"CustNumb\",INDEX([Value],rown-8))","v":44.87}]
[null,null,"CustNumb","T8549"]
[null,null,"CustName","Roy Reed"]
[null,null,"Address","102 Tutit St"]
[null,null,"City","Anchorage"]
[null,null,"State","AZ"]
[null,null,"Zip",637529568]
[null,null,2006,54.2]
[null,null,2007,10.3]
[null,null,2008,{"$f":"GETPIVOTDATA(\"_\"&[Item],PT_1,\"CustNumb\",INDEX([Value],rown-8))","v":29.02}]
[null,null,"CustNumb","N1566"]
[null,null,"CustName","Dale Fisher"]
[null,null,"Address","818 Sutac St"]
[null,null,"City","Stockton"]
[null,null,"State","NE"]
[null,null,"Zip",473410213]
[null,null,2006,85.81]
[null,null,2007,96.08]
[null,null,2008,{"$f":"GETPIVOTDATA(\"_\"&[Item],PT_1,\"CustNumb\",INDEX([Value],rown-8))","v":21.3}]
[null,null,"CustNumb","F4740"]
[null,null,"CustName","Shawn Ford"]
[null,null,"Address","613 Dumek St"]
[null,null,"City","Seattle"]
[null,null,"State","IA"]
[null,null,"Zip",413663177]
[null,null,2006,25.68]
[null,null,2007,34.28]
[null,null,2008,{"$f":"GETPIVOTDATA(\"_\"&[Item],PT_1,\"CustNumb\",INDEX([Value],rown-8))","v":54.84}]
[null,null,"CustNumb","F8747"]
[null,null,"CustName","Randy Williams"]
[null,null,"Address","927 Pesob St"]
[null,null,"City","Fresno"]
[null,null,"State","NY"]
[null,null,"Zip",372996623]
[null,null,2006,17.71]
[null,null,2007,20.55]
[null,null,2008,{"$f":"GETPIVOTDATA(\"_\"&[Item],PT_1,\"CustNumb\",INDEX([Value],rown-8))","v":74.22}]
[null,null,"CustNumb","D3156"]
[null,null,"CustName","Randy Reynolds"]
[null,null,"Address","688 Tugic St"]
[null,null,"City","Minneapolis"]
[null,null,"State","WI"]
[null,null,"Zip",250219347]
[null,null,2006,37.090000000000003]
[null,null,2007,38.799999999999997]
[null,null,2008,{"$f":"GETPIVOTDATA(\"_\"&[Item],PT_1,\"CustNumb\",INDEX([Value],rown-8))","v":57.51}]
[null,null,"CustNumb","G6719"]
[null,null,"CustName","Gregory Nelson"]
[null,null,"Address","234 Femuc St"]
[null,null,"City","Sacramento"]
[null,null,"State","KS"]
[null,null,"Zip",602536675]
[null,null,2006,21.67]
[null,null,2007,57.87]
[null,null,2008,{"$f":"GETPIVOTDATA(\"_\"&[Item],PT_1,\"CustNumb\",INDEX([Value],rown-8))","v":33.53}]
[null,null,"CustNumb","K8839"]
[null,null,"CustName","Roy Reynolds"]
[null,null,"Address","853 Garic St"]
[null,null,"City","Tallahassee"]
[null,null,"State","ME"]
[null,null,"Zip",185217078]
[null,null,2006,81.239999999999995]
[null,null,2007,82.16]
[null,null,2008,{"$f":"GETPIVOTDATA(\"_\"&[Item],PT_1,\"CustNumb\",INDEX([Value],rown-8))","v":94.95}]
[null,null,"CustNumb","T5548"]
[null,null,"CustName","Terry Coleman"]
[null,null,"Address","239 Vunuk St"]
[null,null,"City","Augusta"]
[null,null,"State","AZ"]
[null,null,"Zip",187534889]
[null,null,2006,84.9]
[null,null,2007,70.52]
[null,null,2008,{"$f":"GETPIVOTDATA(\"_\"&[Item],PT_1,\"CustNumb\",INDEX([Value],rown-8))","v":10.97}]
[null,null,"CustNumb","R2752"]
[null,null,"CustName","Earl Hall"]
[null,null,"Address","221 Lakid St"]
[null,null,"City","Modesto"]
[null,null,"State","MD"]
[null,null,"Zip",636897071]
[null,null,2006,62.38]
[null,null,2007,19.32]
[null,null,2008,{"$f":"GETPIVOTDATA(\"_\"&[Item],PT_1,\"CustNumb\",INDEX([Value],rown-8))","v":18.329999999999998}]
[null,null,"CustNumb","D9871"]
[null,null,"CustName","Jonathan Young"]
[null,null,"Address","771 Korod St"]
[null,null,"City","Santa Ana"]
[null,null,"State","PA"]
[null,null,"Zip",887882610]
[null,null,2006,25.47]
[null,null,2007,45.33]
[null,null,2008,{"$f":"GETPIVOTDATA(\"_\"&[Item],PT_1,\"CustNumb\",INDEX([Value],rown-8))","v":11.71}]
[null,null,"CustNumb","B5804"]
[null,null,"CustName","Donald Stevens"]
[null,null,"Address","693 Gafib St"]
[null,null,"City","Madison"]
[null,null,"State","UT"]
[null,null,"Zip",317345714]
[null,null,2006,44.87]
[null,null,2007,70.37]
[null,null,2008,{"$f":"GETPIVOTDATA(\"_\"&[Item],PT_1,\"CustNumb\",INDEX([Value],rown-8))","v":0}]
[null,null,"CustNumb","P1220"]
[null,null,"CustName","Allen Kennedy"]
[null,null,"Address","138 Wekad St"]
[null,null,"City","Oxnard"]
[null,null,"State","MT"]
[null,null,"Zip",845984838]
[null,null,2006,65.599999999999994]
[null,null,2007,80.77]
[null,null,2008,{"$f":"GETPIVOTDATA(\"_\"&[Item],PT_1,\"CustNumb\",INDEX([Value],rown-8))","v":0}]
[null,null,"CustNumb","H9477"]
[null,null,"CustName","Patrick Parker"]
[null,null,"Address","969 Tohip St"]
[null,null,"City","Santa Clarita"]
[null,null,"State","TX"]
[null,null,"Zip",551929212]
[null,null,2006,89.97]
[null,null,2007,68.650000000000006]
[null,null,2008,{"$f":"GETPIVOTDATA(\"_\"&[Item],PT_1,\"CustNumb\",INDEX([Value],rown-8))","v":0}]
[null,null,"CustNumb","H3155"]
[null,null,"CustName","Vincent Jordan"]
[null,null,"Address","876 Lasid St"]
[null,null,"City","Jackson"]
[null,null,"State","NY"]
[null,null,"Zip",303567006]
[null,null,2006,76.88]
[null,null,2007,92.11]
[null,null,2008,{"$f":"GETPIVOTDATA(\"_\"&[Item],PT_1,\"CustNumb\",INDEX([Value],rown-8))","v":0}]
[null,null,"CustNumb","V6088"]
[null,null,"CustName","Albert Simpson"]
[null,null,"Address","264 Wunap St"]
[null,null,"City","Buffalo"]
[null,null,"State","UT"]
[null,null,"Zip",423017533]
[null,null,2006,28.27]
[null,null,2007,51]
[null,null,2008,{"$f":"GETPIVOTDATA(\"_\"&[Item],PT_1,\"CustNumb\",INDEX([Value],rown-8))","v":0}]

{"sheet":"Subs","index":2,"n_rows":263,"n_cols":12,"rows_kept":263,"cut":false,"hidden":false,"merged":[]}
[]
["Step1 of 4",null,null,null,null,"Table2"]
[null,null,"Table1"]
[null,null,"Item","Value",null,"CustNumb","CustName","Address","City","State","Zip","2008"]
[null,null,"CustNumb","B4233",null,"B4233","Carl Thompson","886 Modag St","Phoenix","NM",941153217,78.94]
[null,null,"CustName","Carl Thompson",null,"J4172","Jeremy Cox","187 Vihap St","Wichita","VT",806555938,80.88]
["Step2 of 4",null,"Address","886 Modag St",null,"L6069","Harry Woods","521 Noman St","Salt Lake","IN",209881604,23.48]
[null,null,"City","Phoenix",null,"J9069","Luis Henderson","668 Vamot St","Anaheim","NV",114735401,12.75]
[null,null,"State","NM",null,"H9616","Gary Long","254 Nupar St","Shreveport","NE",952504776,27.39]
[null,null,"Zip",941153217,null,"J2236","Steven Hill","862 Lobab St","Tempe","NY",148366122,39.200000000000003]
[null,null,2008,78.94,null,"J9265","Joseph Hamilton","801 Janip St","Chesapeake","CA",537158892,43.07]
[null,null,null,null,null,"V9237","Walter Bell","827 Fafad St","Tampa","HI",284035834,18.350000000000001]
[null,null,null,null,null,"T2255","Christopher Crawford","247 Mocih St","Anaheim","HI",297425916,28.6]
[null,null,"CustNumb","J4172",null,"F5319","Jimmy Turner","555 Mufic St","Tulsa","KS",365734806,98.95]
[null,null,"CustName","Jeremy Cox",null,"T9303","Patrick Collins","968 Wimur St","Washington","NE",628309728,44.87]
[null,null,"Address","187 Vihap St",null,"T8549","Roy Reed","102 Tutit St","Anchorage","AZ",637529568,29.02]
[null,null,"City","Wichita",null,"N1566","Dale Fisher","818 Sutac St","Stockton","NE",473410213,21.3]
[null,null,"State","VT",null,"F4740","Shawn Ford","613 Dumek St","Seattle","IA",413663177,54.84]
[null,null,"Zip",806555938,null,"W7203","Willie Webb","463 Fegis St","Glendale","DE",669235441,81.63]
[null,null,2008,80.88,null,"F8747","Randy Williams","927 Pesob St","Fresno","NY",372996623,74.22]
[null,null,null,null,null,"D3156","Randy Reynolds","688 Tugic St","Minneapolis","WI",250219347,57.51]
[null,null,null,null,null,"G6719","Gregory Nelson","234 Femuc St","Sacramento","KS",602536675,33.53]
[null,null,"CustNumb","L6069",null,"K8839","Roy Reynolds","853 Garic St","Tallahassee","ME",185217078,94.95]
[null,null,"CustName","Harry Woods",null,"T5548","Terry Coleman","239 Vunuk St","Augusta","AZ",187534889,10.97]
[null,null,"Address","521 Noman St",null,"R2752","Earl Hall","221 Lakid St","Modesto","MD",636897071,18.329999999999998]
[null,null,"City","Salt Lake",null,"D9871","Jonathan Young","771 Korod St","Santa Ana","PA",887882610,11.71]
[null,null,"State","IN",null,"T2707","Danny Morris","201 Gunek St","Gilbert","TX",665891989,32.28]
[null,null,"Zip",209881604,null,"J6279","Victor Green","495 Wifop St","Lexington","GA",587077152,68.64]
[null,null,2008,23.48,null,"M5734","Philip Alexander","285 Lihar St","Colorado Springs","CT",446716820,28.49]
[null,null,null,null,null,"R1078","George Walker","351 Sedot St","Knoxville","AL",998801755,62.1]
[null,null,null,null,null,"K7724","Richard Evans","193 Tugis St","Augusta","WY",467141500,33.74]
[null,null,"CustNumb","J9069",null,"V1177","Roy Bryant","682 Setag St","Ontario","VA",813609919,47.58]
[null,null,"CustName","Luis Henderson",null,"J1367","Bryan Hamilton","769 Vutod St","Fort","IN",342434903,43.44]
[null,null,"Address","668 Vamot St"]
[null,null,"City","Anaheim"]
[null,null,"State","NV"]
[null,null,"Zip",114735401]
[null,null,2008,12.75]
[]
[]
[null,null,"CustNumb","H9616"]
[null,null,"CustName","Gary Long"]
[null,null,"Address","254 Nupar St"]
[null,null,"City","Shreveport"]
[null,null,"State","NE"]
[null,null,"Zip",952504776]
[null,null,2008,27.39]
[]
[]
[null,null,"CustNumb","J2236"]
[null,null,"CustName","Steven Hill"]
[null,null,"Address","862 Lobab St"]
[null,null,"City","Tempe"]
[null,null,"State","NY"]
[null,null,"Zip",148366122]
[null,null,2008,39.200000000000003]
[]
[]
[null,null,"CustNumb","J9265"]
[null,null,"CustName","Joseph Hamilton"]
[null,null,"Address","801 Janip St"]
[null,null,"City","Chesapeake"]
[null,null,"State","CA"]
[null,null,"Zip",537158892]
[null,null,2008,43.07]
[]
[]
[null,null,"CustNumb","V9237"]
[null,null,"CustName","Walter Bell"]
[null,null,"Address","827 Fafad St"]
[null,null,"City","Tampa"]
[null,null,"State","HI"]
[null,null,"Zip",284035834]
[null,null,2008,18.350000000000001]
[]
[]
[null,null,"CustNumb","T2255"]
[null,null,"CustName","Christopher Crawford"]
[null,null,"Address","247 Mocih St"]
[null,null,"City","Anaheim"]
[null,null,"State","HI"]
[null,null,"Zip",297425916]
[null,null,2008,28.6]
[]
[]
[null,null,"CustNumb","F5319"]
[null,null,"CustName","Jimmy Turner"]
[null,null,"Address","555 Mufic St"]
[null,null,"City","Tulsa"]
[null,null,"State","KS"]
[null,null,"Zip",365734806]
[null,null,2008,98.95]
[]
[]
[null,null,"CustNumb","T9303"]
[null,null,"CustName","Patrick Collins"]
[null,null,"Address","968 Wimur St"]
[null,null,"City","Washington"]
[null,null,"State","NE"]
[null,null,"Zip",628309728]
[null,null,2008,44.87]
[]
[]
[null,null,"CustNumb","T8549"]
[null,null,"CustName","Roy Reed"]
[null,null,"Address","102 Tutit St"]
[null,null,"City","Anchorage"]
[null,null,"State","AZ"]
[null,null,"Zip",637529568]
[null,null,2008,29.02]
[]
[]
[null,null,"CustNumb","N1566"]
[null,null,"CustName","Dale Fisher"]
[null,null,"Address","818 Sutac St"]
[null,null,"City","Stockton"]
[null,null,"State","NE"]
[null,null,"Zip",473410213]
[null,null,2008,21.3]
[]
[]
[null,null,"CustNumb","F4740"]
[null,null,"CustName","Shawn Ford"]
[null,null,"Address","613 Dumek St"]
[null,null,"City","Seattle"]
[null,null,"State","IA"]
[null,null,"Zip",413663177]
[null,null,2008,54.84]
[]
[]
[null,null,"CustNumb","W7203"]
[null,null,"CustName","Willie Webb"]
[null,null,"Address","463 Fegis St"]
[null,null,"City","Glendale"]
[null,null,"State","DE"]
[null,null,"Zip",669235441]
[null,null,2008,81.63]
[]
[]
[null,null,"CustNumb","F8747"]
[null,null,"CustName","Randy Williams"]
[null,null,"Address","927 Pesob St"]
[null,null,"City","Fresno"]
[null,null,"State","NY"]
[null,null,"Zip",372996623]
[null,null,2008,74.22]
[]
[]
[null,null,"CustNumb","D3156"]
[null,null,"CustName","Randy Reynolds"]
[null,null,"Address","688 Tugic St"]
[null,null,"City","Minneapolis"]
[null,null,"State","WI"]
[null,null,"Zip",250219347]
[null,null,2008,57.51]
[]
[]
[null,null,"CustNumb","G6719"]
[null,null,"CustName","Gregory Nelson"]
[null,null,"Address","234 Femuc St"]
[null,null,"City","Sacramento"]
[null,null,"State","KS"]
[null,null,"Zip",602536675]
[null,null,2008,33.53]
[]
[]
[null,null,"CustNumb","K8839"]
[null,null,"CustName","Roy Reynolds"]
[null,null,"Address","853 Garic St"]
[null,null,"City","Tallahassee"]
[null,null,"State","ME"]
[null,null,"Zip",185217078]
[null,null,2008,94.95]
[]
[]
[null,null,"CustNumb","T5548"]
[null,null,"CustName","Terry Coleman"]
[null,null,"Address","239 Vunuk St"]
[null,null,"City","Augusta"]
[null,null,"State","AZ"]
[null,null,"Zip",187534889]
[null,null,2008,10.97]
[]
[]
[null,null,"CustNumb","R2752"]
[null,null,"CustName","Earl Hall"]
[null,null,"Address","221 Lakid St"]
[null,null,"City","Modesto"]
[null,null,"State","MD"]
[null,null,"Zip",636897071]
[null,null,2008,18.329999999999998]
[]
[]
[null,null,"CustNumb","D9871"]
[null,null,"CustName","Jonathan Young"]
[null,null,"Address","771 Korod St"]
[null,null,"City","Santa Ana"]
[null,null,"State","PA"]
[null,null,"Zip",887882610]
[null,null,2008,11.71]
[]
[]
[null,null,"CustNumb","T2707"]
[null,null,"CustName","Danny Morris"]
[null,null,"Address","201 Gunek St"]
[null,null,"City","Gilbert"]
[null,null,"State","TX"]
[null,null,"Zip",665891989]
[null,null,2008,32.28]
[]
[]
[null,null,"CustNumb","J6279"]
[null,null,"CustName","Victor Green"]
[null,null,"Address","495 Wifop St"]
[null,null,"City","Lexington"]
[null,null,"State","GA"]
[null,null,"Zip",587077152]
[null,null,2008,68.64]
[]
[]
[null,null,"CustNumb","M5734"]
[null,null,"CustName","Philip Alexander"]
[null,null,"Address","285 Lihar St"]
[null,null,"City","Colorado Springs"]
[null,null,"State","CT"]
[null,null,"Zip",446716820]
[null,null,2008,28.49]
[]
[]
[null,null,"CustNumb","R1078"]
[null,null,"CustName","George Walker"]
[null,null,"Address","351 Sedot St"]
[null,null,"City","Knoxville"]
[null,null,"State","AL"]
[null,null,"Zip",998801755]
[null,null,2008,62.1]
[]
[]
[null,null,"CustNumb","K7724"]
[null,null,"CustName","Richard Evans"]
[null,null,"Address","193 Tugis St"]
[null,null,"City","Augusta"]
[null,null,"State","WY"]
[null,null,"Zip",467141500]
[null,null,2008,33.74]
[]
[]
[null,null,"CustNumb","V1177"]
[null,null,"CustName","Roy Bryant"]
[null,null,"Address","682 Setag St"]
[null,null,"City","Ontario"]
[null,null,"State","VA"]
[null,null,"Zip",813609919]
[null,null,2008,47.58]
[]
[]
[null,null,"CustNumb","J1367"]
[null,null,"CustName","Bryan Hamilton"]
[null,null,"Address","769 Vutod St"]
[null,null,"City","Fort"]
[null,null,"State","IN"]
[null,null,"Zip",342434903]
[null,null,2008,43.44]

{"sheet":"Sub1","index":3,"n_rows":65,"n_cols":3,"rows_kept":65,"cut":false,"hidden":false,"merged":[]}
[]
[]
[null,"Table4"]
[null,"Item","Value"]
[null,"CustNumb","B4233"]
[null,"CustName","Carl Thompson"]
[null,"Address","886 Modag St"]
[null,"City","Phoenix"]
[null,"State","NM"]
[null,"Zip",941153217]
[null,2008,78.94]
[]
[]
[null,"CustNumb","J4172"]
[null,"CustName","Jeremy Cox"]
[null,"Address","187 Vihap St"]
[null,"City","Wichita"]
[null,"State","VT"]
[null,"Zip",806555938]
[null,2008,80.88]
[]
[]
[null,"CustNumb","L6069"]
[null,"CustName","Harry Woods"]
[null,"Address","521 Noman St"]
[null,"City","Salt Lake"]
[null,"State","IN"]
[null,"Zip",209881604]
[null,2008,23.48]
[]
[]
[null,"CustNumb","J9069"]
[null,"CustName","Luis Henderson"]
[null,"Address","668 Vamot St"]
[null,"City","Anaheim"]
[null,"State","NV"]
[null,"Zip",114735401]
[null,2008,12.75]
[]
[]
[null,"CustNumb","H9616"]
[null,"CustName","Gary Long"]
[null,"Address","254 Nupar St"]
[null,"City","Shreveport"]
[null,"State","NE"]
[null,"Zip",952504776]
[null,2008,27.39]
[]
[]
[null,"CustNumb","J2236"]
[null,"CustName","Steven Hill"]
[null,"Address","862 Lobab St"]
[null,"City","Tempe"]
[null,"State","NY"]
[null,"Zip",148366122]
[null,2008,39.200000000000003]
[]
[]
[null,"CustNumb","J9265"]
[null,"CustName","Joseph Hamilton"]
[null,"Address","801 Janip St"]
[null,"City","Chesapeake"]
[null,"State","CA"]
[null,"Zip",537158892]
[null,2008,43.07]

{"sheet":"Sub2","index":4,"n_rows":74,"n_cols":3,"rows_kept":74,"cut":false,"hidden":false,"merged":[]}
[]
[]
[null,"Table5"]
[null,"Item","Value"]
[null,"CustNumb","V9237"]
[null,"CustName","Walter Bell"]
[null,"Address","827 Fafad St"]
[null,"City","Tampa"]
[null,"State","HI"]
[null,"Zip",284035834]
[null,2008,18.350000000000001]
[]
[]
[null,"CustNumb","T2255"]
[null,"CustName","Christopher Crawford"]
[null,"Address","247 Mocih St"]
[null,"City","Anaheim"]
[null,"State","HI"]
[null,"Zip",297425916]
[null,2008,28.6]
[]
[]
[null,"CustNumb","F5319"]
[null,"CustName","Jimmy Turner"]
[null,"Address","555 Mufic St"]
[null,"City","Tulsa"]
[null,"State","KS"]
[null,"Zip",365734806]
[null,2008,98.95]
[]
[]
[null,"CustNumb","T9303"]
[null,"CustName","Patrick Collins"]
[null,"Address","968 Wimur St"]
[null,"City","Washington"]
[null,"State","NE"]
[null,"Zip",628309728]
[null,2008,44.87]
[]
[]
[null,"CustNumb","T8549"]
[null,"CustName","Roy Reed"]
[null,"Address","102 Tutit St"]
[null,"City","Anchorage"]
[null,"State","AZ"]
[null,"Zip",637529568]
[null,2008,29.02]
[]
[]
[null,"CustNumb","N1566"]
[null,"CustName","Dale Fisher"]
[null,"Address","818 Sutac St"]
[null,"City","Stockton"]
[null,"State","NE"]
[null,"Zip",473410213]
[null,2008,21.3]
[]
[]
[null,"CustNumb","F4740"]
[null,"CustName","Shawn Ford"]
[null,"Address","613 Dumek St"]
[null,"City","Seattle"]
[null,"State","IA"]
[null,"Zip",413663177]
[null,2008,54.84]
[]
[]
[null,"CustNumb","W7203"]
[null,"CustName","Willie Webb"]
[null,"Address","463 Fegis St"]
[null,"City","Glendale"]
[null,"State","DE"]
[null,"Zip",669235441]
[null,2008,81.63]

{"sheet":"Sub3","index":5,"n_rows":65,"n_cols":3,"rows_kept":65,"cut":false,"hidden":false,"merged":[]}
[]
[]
[null,"Table6"]
[null,"Item","Value"]
[null,"CustNumb","F8747"]
[null,"CustName","Randy Williams"]
[null,"Address","927 Pesob St"]
[null,"City","Fresno"]
[null,"State","NY"]
[null,"Zip",372996623]
[null,2008,74.22]
[]
[]
[null,"CustNumb","D3156"]
[null,"CustName","Randy Reynolds"]
[null,"Address","688 Tugic St"]
[null,"City","Minneapolis"]
[null,"State","WI"]
[null,"Zip",250219347]
[null,2008,57.51]
[]
[]
[null,"CustNumb","G6719"]
[null,"CustName","Gregory Nelson"]
[null,"Address","234 Femuc St"]
[null,"City","Sacramento"]
[null,"State","KS"]
[null,"Zip",602536675]
[null,2008,33.53]
[]
[]
[null,"CustNumb","K8839"]
[null,"CustName","Roy Reynolds"]
[null,"Address","853 Garic St"]
[null,"City","Tallahassee"]
[null,"State","ME"]
[null,"Zip",185217078]
[null,2008,94.95]
[]
[]
[null,"CustNumb","T5548"]
[null,"CustName","Terry Coleman"]
[null,"Address","239 Vunuk St"]
[null,"City","Augusta"]
[null,"State","AZ"]
[null,"Zip",187534889]
[null,2008,10.97]
[]
[]
[null,"CustNumb","R2752"]
[null,"CustName","Earl Hall"]
[null,"Address","221 Lakid St"]
[null,"City","Modesto"]
[null,"State","MD"]
[null,"Zip",636897071]
[null,2008,18.329999999999998]
[]
[]
[null,"CustNumb","D9871"]
[null,"CustName","Jonathan Young"]
[null,"Address","771 Korod St"]
[null,"City","Santa Ana"]
[null,"State","PA"]
[null,"Zip",887882610]
[null,2008,11.71]

{"sheet":"Sub4","index":6,"n_rows":65,"n_cols":3,"rows_kept":65,"cut":false,"hidden":false,"merged":[]}
[]
[]
[null,"Table3"]
[null,"Item","Value"]
[null,"CustNumb","T2707"]
[null,"CustName","Danny Morris"]
[null,"Address","201 Gunek St"]
[null,"City","Gilbert"]
[null,"State","TX"]
[null,"Zip",665891989]
[null,2008,32.28]
[]
[]
[null,"CustNumb","J6279"]
[null,"CustName","Victor Green"]
[null,"Address","495 Wifop St"]
[null,"City","Lexington"]
[null,"State","GA"]
[null,"Zip",587077152]
[null,2008,68.64]
[]
[]
[null,"CustNumb","M5734"]
[null,"CustName","Philip Alexander"]
[null,"Address","285 Lihar St"]
[null,"City","Colorado Springs"]
[null,"State","CT"]
[null,"Zip",446716820]
[null,2008,28.49]
[]
[]
[null,"CustNumb","R1078"]
[null,"CustName","George Walker"]
[null,"Address","351 Sedot St"]
[null,"City","Knoxville"]
[null,"State","AL"]
[null,"Zip",998801755]
[null,2008,62.1]
[]
[]
[null,"CustNumb","K7724"]
[null,"CustName","Richard Evans"]
[null,"Address","193 Tugis St"]
[null,"City","Augusta"]
[null,"State","WY"]
[null,"Zip",467141500]
[null,2008,33.74]
[]
[]
[null,"CustNumb","V1177"]
[null,"CustName","Roy Bryant"]
[null,"Address","682 Setag St"]
[null,"City","Ontario"]
[null,"State","VA"]
[null,"Zip",813609919]
[null,2008,47.58]
[]
[]
[null,"CustNumb","J1367"]
[null,"CustName","Bryan Hamilton"]
[null,"Address","769 Vutod St"]
[null,"City","Fort"]
[null,"State","IN"]
[null,"Zip",342434903]
[null,2008,43.44]